bitfinex/quotes_ETHUSD_20260304
["timestamp","ask_amount","ask_price","bid_price","bid_amount"]
[1772634931014,0.002,2105.1,2103.4,4.75409081]
[1772634931684,4.95203247,2104.8,2103.0,1.1897737]
[1772634932461,0.002,2105.1,2103.0,6.12578822]
[1772634932661,1.18959203,2105.1,2103.0,6.12578822]
[1772634932958,1.18959203,2105.1,2103.2,4.93601452]
[1772634933160,1.18959203,2105.1,2103.4,4.93601452]
[1772634933373,1.18959203,2105.1,2103.5,6.51301452]
[1772634933577,1.18959203,2105.1,2103.6,4.93601452]
[1772634933782,1.18959203,2105.1,2103.1,4.93601452]
[1772634934170,1.18959203,2105.1,2103.0,1.1897737]
[1772634934171,4.95203247,2104.4,2103.0,0.001]
[1772634934381,2.2162673,2104.8,2102.8,0.001]
[1772634934382,2.2162673,2103.7,2102.8,0.001]
[1772634934584,4.95203247,2103.6,2101.6,2.57809276]
[1772634934760,7.16829977,2103.3,2101.2,4.93701452]
[1772634935089,1.06157045,2102.7,2101.3,1.18973968]
[1772634935259,1.06157045,2102.7,2101.2,9.69597325]
[1772634935260,1.06157045,2102.7,2101.2,1.19078066]
[1772634935261,2.2162673,2102.5,2101.2,1.19078066]
[1772634935690,2.2162673,2102.5,2101.2,0.001]
[1772634936111,2.2162673,2102.1,2101.2,0.001]
[1772634936591,1.832,2102.3,2101.2,1.19077414]
[1772634936793,1.832,2102.3,2101.2,0.001]
[1772634936794,7.16829977,2102.1,2101.2,0.001]
[1772634936982,2.2162673,2101.3,2099.7,4.93601452]
[1772634937190,1.831,2101.2,2099.8,1.82898511]
[1772634937500,1.832,2101.5,2099.8,6.76499963]
[1772634937660,1.832,2101.5,2099.8,1.82898511]
[1772634937661,2.2162673,2101.3,2099.8,1.82898511]
[1772634937868,2.2162673,2101.3,2099.8,1.82901181]
[1772634938076,1.832,2101.5,2099.8,0.63843438]
[1772634938364,2.2162673,2101.4,2099.8,1.82901313]
[1772634938566,4.95203247,2101.3,2099.8,0.63843438]
[1772634938765,1.1899662,2100.9,2099.8,0.63843438]
[1772634938963,2.2162673,2100.6,2099.8,0.63843438]
[1772634939178,1.832,2100.5,2099.1,1.19098582]
[1772634939495,1.832,2100.5,2098.8,1.19115685]
[1772634939699,4.95203247,2100.8,2098.8,1.19115685]
[1772634939915,7.16829977,2100.2,2098.2,1.19149747]
[1772634940068,7.16829977,2100.2,2098.2,6.12751199]
[1772634940464,1.831,2100.4,2098.2,1.19149747]
[1772634940465,2.2162673,2099.8,2098.2,1.19149747]
[1772634940669,2.2162673,2099.8,2098.1,1.19252656]
[1772634940670,7.16829977,2099.8,2098.1,1.19252656]
[1772634940879,7.16829977,2099.4,2098.1,0.001]
[1772634941169,1.832,2099.3,2098.1,0.001]
[1772634941368,2.2162673,2099.0,2098.1,0.001]
[1772634941598,2.2162673,2099.0,2097.9,0.001]
[1772634941906,4.95203247,2099.4,2097.6,1.19280222]
[1772634941907,2.2162673,2098.6,2097.6,1.19280222]
[1772634942206,2.2162673,2098.6,2097.6,0.001]
[1772634942392,2.2162673,2099.0,2097.6,1.19282694]
[1772634942586,4.95203247,2099.4,2097.6,1.19282694]
[1772634942899,3.02289639,2099.3,2097.6,6.12884146]
[1772634943111,1.832,2099.6,2097.6,6.12884146]
[1772634943398,1.832,2099.6,2097.6,0.001]
[1772634943399,7.16829977,2099.1,2097.6,0.001]
[1772634943722,0.065536,2099.6,2096.1,1.19269118]
[1772634943723,2.2162673,2097.9,2096.1,1.19269118]
[1772634944031,4.95203247,2097.8,2096.1,1.19269118]
[1772634944299,4.95203247,2097.8,2095.5,1.43241618]
[1772634944300,3.76831327,2097.9,2095.6,6.12899027]
[1772634944301,1.832,2097.7,2095.6,6.12899027]
[1772634944799,3.76831327,2097.9,2095.6,6.12899027]
[1772634944800,1.19172466,2097.8,2095.6,6.12899027]
[1772634945099,2.2162673,2097.1,2095.6,6.12899027]
[1772634945408,2.2162673,2097.1,2095.5,1.19399387]
[1772634945409,1.832,2097.0,2095.5,1.19399387]
[1772634945586,1.427,2097.6,2094.9,1.19337438]
[1772634945587,2.2162673,2095.8,2094.9,1.19337438]
[1772634945788,2.2162673,2095.8,2094.8,1.84273275]
[1772634945986,2.2162673,2095.8,2094.8,1.84274898]
[1772634946189,2.2162673,2095.8,2094.0,0.001]
[1772634946190,4.95203247,2096.0,2094.1,1.19383028]
[1772634946191,2.2162673,2095.0,2094.1,1.19383028]
[1772634946496,2.2162673,2095.0,2092.6,4.77840472]
[1772634946497,2.2162673,2094.2,2092.6,4.77840472]
[1772634946698,5.01756847,2094.5,2092.6,4.77840472]
[1772634946699,2.2162673,2093.7,2092.6,4.77840472]
[1772634946900,4.0482673,2093.7,2092.6,4.77840472]
[1772634947070,2.2162673,2093.3,2092.0,4.77897252]
[1772634947469,2.2162673,2093.8,2092.1,6.36994327]
[1772634947779,1.19405836,2093.7,2092.1,6.36994327]
[1772634947981,1.19405836,2093.7,2090.8,1.43481457]
[1772634947982,1.3,2093.6,2090.0,2.5732777]
[1772634948185,2.2162673,2091.7,2090.0,6.13215703]
[1772634948568,1.06235976,2092.3,2090.0,6.13215703]
[1772634948772,1.06235976,2092.3,2090.2,4.65265582]
[1772634948995,1.19491444,2092.2,2090.4,4.65265582]
[1772634949197,11.42728974,2092.8,2090.4,4.65265582]
[1772634949198,4.77655262,2093.6,2090.4,4.65265582]
[1772634949381,4.77655262,2093.6,2090.3,1.19600057]
[1772634949382,0.41542389,2093.5,2091.5,0.065536]
[1772634949588,0.41542389,2093.5,2091.7,4.65265582]
[1772634949807,0.41542389,2093.5,2091.9,4.65265582]
[1772634950174,0.41542389,2093.5,2090.2,6.21300229]
[1772634950175,0.41542389,2093.5,2090.4,4.15315582]
[1772634950176,2.2162673,2092.1,2090.4,4.15315582]
[1772634950482,2.2162673,2092.0,2090.4,4.15315582]
[1772634950671,2.2162673,2092.4,2090.4,4.15315582]
[1772634951074,1.19485733,2092.3,2090.6,4.65265582]
[1772634951294,2.2162673,2092.0,2090.6,4.65265582]
[1772634951494,2.2162673,2092.0,2089.9,9.43750385]
[1772634951700,2.2162673,2091.6,2089.9,5.84888256]
[1772634952089,2.2162673,2092.0,2090.0,4.65265582]
[1772634952288,1.19485733,2092.3,2090.0,4.65265582]
[1772634952899,2.2162673,2092.0,2090.0,4.65265582]
[1772634953209,1.1950858,2091.9,2090.2,4.65265582]
[1772634953614,2.2162673,2091.6,2090.2,4.65265582]
[1772634953981,2.2162673,2091.6,2089.8,0.66015826]
[1772634953983,0.14948499,2091.0,2089.8,0.66015826]
[1772634954190,0.14948499,2091.0,2088.2,4.65265582]
[1772634954191,7.05799782,2090.6,2088.2,4.65265582]
[1772634954495,4.84173052,2090.6,2088.2,4.65265582]
[1772634954715,0.14948499,2090.8,2088.2,4.65265582]
[1772634954895,5.05675151,2091.6,2088.5,0.065536]
[1772634955093,4.84173052,2091.4,2088.8,5.84951526]
[1772634955382,7.12353382,2091.2,2088.8,5.84951526]
[1772634955680,6.84783536,2091.2,2088.8,5.84951526]
[1772634955884,4.78125747,2091.7,2088.8,5.84951526]
[1772634955885,0.32647609,2092.1,2090.2,4.65265582]
[1772634956083,1.43360074,2092.7,2090.4,0.065536]
[1772634956084,1.19480022,2092.4,2090.4,0.065536]
[1772634956402,1.19480022,2092.4,2090.0,0.001]
[1772634956404,4.84173052,2090.7,2090.0,0.001]
[1772634956711,2.2162673,2090.4,2088.3,1.197146]
[1772634956896,5.16174146,2090.3,2088.3,1.197146]
[1772634957291,5.16174146,2090.3,2088.2,4.78877549]
[1772634957292,1.19605779,2090.2,2088.2,4.78877549]
[1772634957529,1.19605779,2090.2,2088.1,4.78858401]
[1772634957823,1.19605779,2090.2,2088.1,9.44123983]
[1772634958425,1.19605779,2090.2,2087.9,4.78904267]
[1772634958426,4.84173052,2089.9,2087.9,4.78945639]
[1772634958722,4.84173052,2089.5,2087.2,4.79097878]
[1772634958897,0.065536,2089.7,2087.2,4.79097878]
[1772634958898,4.84173052,2089.1,2087.2,4.79097878]
[1772634959093,1.847,2089.0,2087.2,4.79097878]
[1772634959299,1.19668756,2089.1,2087.2,4.79097878]
[1772634959524,1.19668756,2089.1,2087.2,9.4436346]
[1772634959823,1.19645848,2089.5,2087.4,4.65265582]
[1772634960257,1.19645848,2089.5,2087.6,4.65265582]
[1772634960452,1.85,2090.0,2087.6,4.65265582]
[1772634960764,1.19605779,2090.2,2087.8,4.65265582]
[1772634960971,1.19605779,2090.2,2088.0,4.65265582]
[1772634961270,1.19605779,2090.2,2088.3,1.197146]
[1772634961434,1.19605779,2090.2,2088.3,5.84980182]
[1772634961829,1.19605779,2090.2,2088.3,4.65265582]
[1772634962256,0.32001094,2090.3,2088.7,4.65265582]
[1772634962455,1.19565737,2090.9,2088.9,4.65265582]
[1772634962853,1.19565737,2090.9,2089.1,4.65265582]
[1772634963336,4.78245337,2091.0,2089.2,1.19663028]
[1772634963536,5.10367894,2091.1,2089.2,5.8492861]
[1772634963768,5.10367894,2091.1,2088.8,4.85205715]
[1772634963769,2.2162673,2090.4,2088.6,1.19697404]
[1772634963979,1.854,2090.3,2088.6,1.19697404]
[1772634964186,1.854,2091.0,2088.7,4.65265582]
[1772634964389,9.94540946,2091.1,2088.7,4.65265582]
[1772634964888,9.94540946,2091.1,2088.9,4.65265582]
[1772634965245,1.19600057,2090.3,2088.5,4.78804652]
[1772634965547,3.05100057,2090.3,2088.4,1.19708868]
[1772634966069,1.19600057,2090.3,2088.4,1.19708868]
[1772634966259,1.855,2090.2,2088.3,5.84979718]
[1772634966458,7.05799782,2090.0,2088.2,1.19719281]
[1772634966765,7.05799782,2090.0,2087.8,4.65265582]
[1772634966766,1.856,2089.9,2087.8,4.65265582]
[1772634966943,4.84173052,2090.0,2087.8,4.65265582]
[1772634967140,1.19600057,2090.3,2087.7,1.19749006]
[1772634967141,2.2162673,2089.6,2087.7,1.19749006]
[1772634967337,1.19645848,2089.5,2087.4,4.78996024]
[1772634967587,2.2162673,2089.1,2087.3,1.19771954]
[1772634968072,6.69773052,2089.4,2086.7,5.85071974]
[1772634968073,2.2162673,2088.8,2086.7,5.85071974]
[1772634968267,4.84173052,2088.7,2086.7,1.19806392]
[1772634968487,2.2162673,2089.2,2086.8,4.65265582]
[1772634968649,1.857,2089.1,2086.9,4.65265582]
[1772634968852,1.857,2089.0,2086.9,4.65265582]
[1772634969440,1.19680214,2088.9,2088.5,0.001]
[1772634969639,2.2162673,2088.8,2087.0,1.19789171]
[1772634969841,2.2162673,2088.8,2086.6,2.6499039]
[1772634969842,2.2162673,2088.4,2086.7,1.19801993]
[1772634970037,1.857,2088.3,2086.7,1.19801993]
[1772634970341,1.857,2088.3,2086.4,4.79293453]
[1772634970342,4.84173052,2088.2,2086.4,4.79293453]
[1772634970571,4.84173052,2088.2,2085.9,1.602]
[1772634970572,4.84173052,2088.2,2085.3,1.19886826]
[1772634970573,4.84173052,2087.5,2085.3,1.19886826]
[1772634970738,4.84173052,2087.5,2085.2,6.55946967]
[1772634970739,0.065536,2087.0,2085.2,1.36089934]
[1772634970941,2.2162673,2086.8,2085.2,0.1619966]
[1772634971143,7.05799782,2086.8,2085.2,0.1619966]
[1772634971438,1.19823619,2086.4,2085.2,1.36091949]
[1772634971639,1.19823619,2086.4,2084.6,2.5732777]
[1772634971640,4.84173052,2085.2,2083.9,0.001]
[1772634971877,4.84173052,2085.2,2082.5,1.20048019]
[1772634971879,4.84173052,2084.5,2082.5,1.20048019]
[1772634972051,2.2162673,2084.2,2082.5,1.20048019]
[1772634972371,0.04321116,2082.5,2082.4,1.20153407]
[1772634972546,4.0732673,2084.3,2082.4,1.20152951]
[1772634972755,7.05799782,2085.0,2082.5,4.65265582]
[1772634972958,7.05799782,2085.0,2082.6,4.65265582]
[1772634973157,4.84173052,2084.9,2082.6,4.65265582]
[1772634973357,4.84173052,2084.9,2082.5,1.595]
[1772634973358,0.14948499,2084.4,2082.5,2.79544117]
[1772634973568,4.0742673,2084.3,2082.4,1.20149875]
[1772634973770,1.858,2084.4,2082.4,1.20149875]
[1772634973981,4.90726652,2084.2,2082.4,0.001]
[1772634974148,4.84173052,2083.8,2082.4,0.001]
[1772634974347,2.2162673,2083.4,2082.4,0.001]
[1772634974549,0.14948499,2083.7,2081.9,0.001]
[1772634974550,2.2162673,2082.6,2081.9,0.001]
[1772634974767,4.84173052,2082.9,2080.4,1.44202159]
[1772634974768,2.2162673,2082.1,2080.4,1.44202159]
[1772634974970,1.859,2082.6,2080.1,4.65265582]
[1772634975176,2.2162673,2082.8,2081.1,1.36324021]
[1772634975488,2.2162673,2082.4,2081.1,0.1619966]
[1772634975663,1.20042254,2082.6,2081.1,0.1619966]
[1772634975862,1.20042254,2082.6,2081.1,1.36327081]
[1772634976061,3.05942254,2082.6,2081.1,0.1619966]
[1772634976277,3.05942254,2082.6,2079.1,4.65265582]
[1772634976278,4.84173052,2081.9,2079.1,4.65265582]
[1772634976458,3.05942254,2082.6,2080.2,4.65265582]
[1772634976459,1.20042254,2082.6,2080.2,4.65265582]
[1772634976653,1.20024965,2082.9,2080.7,0.065536]
[1772634976877,2.2162673,2083.8,2081.3,4.71819182]
[1772634977085,1.19944345,2084.3,2081.9,4.65265582]
[1772634977289,1.19944345,2084.3,2082.5,4.65265582]
[1772634977469,1.19909827,2084.9,2082.7,0.065536]
[1772634977671,1.19909827,2084.9,2082.7,4.71819182]
[1772634977963,2.2162673,2084.3,2082.5,1.20047607]
[1772634978262,2.2162673,2083.9,2081.5,0.065536]
[1772634978461,2.9052498,2084.1,2081.5,5.08745382]
[1772634978793,2.63609827,2084.9,2081.5,5.08745382]
[1772634978794,1.19909827,2084.9,2082.3,5.02191782]
[1772634978962,1.19909827,2084.9,2082.7,5.02191782]
[1772634979166,6.12474322,2084.9,2082.4,3.93189296]
[1772634979490,6.78664495,2084.8,2082.5,1.20048019]
[1772634979692,6.78664495,2084.8,2082.1,1.20071082]
[1772634979693,2.9052498,2084.2,2082.1,1.20071082]
[1772634979991,4.92564495,2084.1,2082.1,1.20071082]
[1772634980196,2.9052498,2083.8,2082.1,1.20071082]
[1772634980379,4.92564495,2084.1,2082.1,1.20071082]
[1772634980763,6.78664495,2084.1,2082.1,1.20071082]
[1772634981463,5.96686592,2084.0,2081.8,4.80284328]
[1772634981663,4.10486592,2084.0,2081.8,4.80284328]
[1772634982195,0.8,2083.9,2081.8,4.80284328]
[1772634982375,0.065536,2083.8,2081.8,4.80284328]
[1772634982782,0.065536,2083.8,2082.9,0.001]
[1772634982982,0.065536,2083.8,2081.7,1.20094153]
[1772634983312,1.19961612,2084.0,2081.7,6.30320649]
[1772634983593,1.19961612,2084.0,2081.6,4.80376615]
[1772634983594,1.19961612,2084.0,2082.6,0.001]
[1772634984090,1.926536,2083.9,2082.6,0.001]
[1772634984492,0.065536,2083.9,2082.6,0.001]
[1772634984795,2.9052498,2083.3,2082.6,0.001]
[1772634984964,0.065536,2083.2,2082.4,0.001]
[1772634985290,0.065536,2083.2,2080.9,1.20140323]
[1772634985291,2.9052498,2082.9,2080.9,1.20140323]
[1772634985504,2.9052498,2082.5,2080.8,1.20146097]
[1772634985706,0.21502099,2082.4,2080.2,1.20180751]
[1772634985996,0.065536,2082.0,2080.2,1.20180751]
[1772634986206,2.9052498,2082.1,2079.9,1.20198086]
[1772634986207,0.065536,2081.6,2079.9,1.20198086]
[1772634986367,0.14948499,2081.8,2079.9,1.20198086]
[1772634986568,0.065536,2081.6,2079.8,1.88372306]
[1772634986795,0.065536,2081.2,2079.8,0.68170056]
[1772634987096,4.7662498,2081.2,2079.8,0.68170056]
[1772634987299,5.11461571,2081.4,2079.8,1.8837323]
[1772634987599,1.20123005,2081.2,2079.8,1.8837314]
[1772634987814,1.20123005,2081.2,2079.8,0.68170056]
[1772634987977,2.9052498,2080.8,2079.8,0.68170056]
[1772634988295,5.3296367,2080.7,2078.7,1.20267474]
[1772634988497,0.02255,2079.8,2078.7,1.20267474]
[1772634989196,0.02255,2079.8,2078.6,4.81169899]
[1772634989197,0.02255,2079.8,2078.6,0.001]
[1772634989364,1.88355,2079.8,2078.6,0.001]
[1772634989562,1.88355,2079.8,2078.4,0.001]
[1772634989563,0.065536,2079.0,2078.4,0.001]
[1772634989792,2.51732238,2079.4,2077.5,1.20333594]
[1772634990099,8.08540151,2079.3,2077.5,1.20333594]
[1772634990319,4.80861704,2079.7,2077.5,1.20333594]
[1772634990594,6.31676997,2079.6,2077.5,1.20333594]
[1772634991178,1.20215426,2079.6,2077.5,6.3056009]
[1772634991493,4.83116704,2079.8,2077.5,6.3056009]
[1772634991494,1.22464394,2079.8,2077.8,1.26873168]
[1772634991685,0.02255,2079.8,2078.1,0.21502099]
[1772634991886,0.02255,2079.8,2078.3,5.16780096]
[1772634992089,1.22464424,2079.8,2078.5,0.065536]
[1772634992271,1.22464424,2079.8,2078.3,5.10226496]
[1772634992471,0.02255,2079.8,2078.3,5.10226496]
[1772634992691,0.02255,2079.8,2078.4,5.16780096]
[1772634993103,1.22463104,2079.8,2078.4,6.77380096]
[1772634993392,0.02255,2079.8,2078.4,6.77380096]
[1772634993694,0.02255,2079.8,2078.5,1.20279047]
[1772634994067,4.80695659,2080.4,2078.5,1.20279047]
[1772634994272,4.80695659,2080.4,2078.1,4.96111698]
[1772634994273,8.08540151,2079.9,2077.9,4.81251287]
[1772634994567,2.9052498,2079.5,2077.9,4.81251287]
[1772634994780,5.11461571,2079.4,2077.9,4.81251287]
[1772634994982,5.18015171,2078.9,2077.1,1.20354323]
[1772634995181,1.861,2079.5,2077.0,4.97640129]
[1772634995182,0.21502099,2078.5,2077.0,1.36564995]
[1772634995498,0.21502099,2078.5,2077.0,0.1619966]
[1772634995499,1.20302199,2078.1,2077.0,0.1619966]
[1772634995686,1.20302199,2078.1,2077.0,1.36565249]
[1772634995889,0.14948499,2078.7,2077.0,1.36565249]
[1772634995890,1.20267474,2078.7,2077.0,1.36565249]
[1772634996367,1.20267474,2078.7,2075.6,1.44532666]
[1772634996368,5.3296367,2078.1,2076.0,1.20418091]
[1772634996567,5.3296367,2078.1,2076.1,4.81670138]
[1772634996568,5.11461571,2077.9,2076.1,4.81670138]
[1772634996784,8.01986551,2077.9,2076.1,4.81670138]
[1772634997074,2.9052498,2076.7,2074.9,4.81945555]
[1772634997268,0.065536,2078.1,2074.9,4.81945555]
[1772634997269,5.11461571,2078.0,2075.1,5.10226496]
[1772634997494,6.67164114,2078.8,2075.8,5.10226496]
[1772634997495,4.81137623,2078.5,2075.8,5.10226496]
[1772634997719,1.20284834,2078.4,2076.5,0.065536]
[1772634997927,1.2025012,2079.0,2078.4,0.001]
[1772634998098,2.9052498,2078.9,2076.8,0.065536]
[1772634998293,2.9052498,2078.9,2076.3,2.32989296]
[1772634998294,5.11461571,2078.9,2076.3,2.32989296]
[1772634998494,2.9052498,2078.6,2076.4,0.065536]
[1772634998705,0.065536,2078.5,2076.3,2.32989296]
[1772634998907,5.81461571,2078.7,2076.4,5.16780096]
[1772634999121,1.442,2080.0,2076.4,5.16780096]
[1772634999122,1.2023277,2079.3,2076.7,5.10226496]
[1772634999323,1.20221207,2079.5,2077.6,0.14948499]
[1772634999505,0.002,2079.6,2078.1,5.16780096]
[1772634999712,0.002,2079.6,2077.9,1.20313778]
[1772634999713,0.002,2079.6,2077.9,2.81113778]
[1772634999993,0.002,2079.6,2077.9,1.20313778]
[1772635000198,5.11661571,2079.6,2077.2,0.21502099]
[1772635000399,0.002,2079.6,2077.2,5.31728595]
[1772635000647,0.002,2079.6,2077.4,5.31728595]
[1772635001125,0.002,2079.6,2077.6,5.16780096]
[1772635001313,0.002,2079.6,2077.7,1.608]
[1772635001635,0.002,2079.6,2077.7,1.20325359]
[1772635002125,0.002,2079.6,2077.8,5.16780096]
[1772635002339,0.002,2079.6,2077.9,1.608]
[1772635002534,0.002,2079.6,2078.0,1.608]
[1772635002535,2.9052498,2079.5,2078.0,1.608]
[1772635002705,2.9052498,2079.5,2077.7,1.20325359]
[1772635002706,5.11461571,2079.4,2077.7,1.20325359]
[1772635002891,2.9707858,2079.5,2077.0,2.81165912]
[1772635002892,5.11461571,2079.3,2077.0,2.81165912]
[1772635003096,5.11461571,2079.3,2077.1,0.065536]
[1772635003292,0.002,2079.6,2077.0,2.81165912]
[1772635003293,0.21702099,2079.6,2077.2,5.10226496]
[1772635003533,0.21702099,2079.6,2077.0,1.20365912]
[1772635003534,5.2641007,2079.4,2077.0,1.20365912]
[1772635003700,1.2025012,2079.0,2077.2,1.20354323]
[1772635004027,5.11461571,2078.9,2077.2,1.20354323]
[1772635004335,1.2025012,2079.0,2077.2,6.30580819]
[1772635004528,1.2025012,2079.0,2077.3,1.673536]
[1772635004830,1.2025012,2079.0,2077.3,5.16780096]
[1772635005017,0.065536,2078.9,2077.2,1.20354323]
[1772635005518,9.22236671,2079.0,2076.4,4.81555326]
[1772635005519,2.9052498,2078.2,2076.4,4.81555326]
[1772635005719,1.20302199,2078.1,2076.2,4.81602774]
[1772635006024,0.21502099,2078.0,2076.2,4.81602774]
[1772635006202,0.21502099,2078.0,2076.1,4.81602774]
[1772635006203,0.21502099,2077.9,2076.1,4.81602774]
[1772635006402,0.21502099,2077.9,2075.3,1.44547358]
[1772635006403,0.21502099,2077.9,2074.9,4.81945163]
[1772635006404,5.2641007,2077.3,2074.9,4.81945163]
[1772635006734,5.11461571,2077.5,2074.9,4.81945163]
[1772635006899,5.18015171,2077.4,2074.9,4.81945163]
[1772635007099,8.08540151,2076.9,2074.9,4.81945163]
[1772635007399,8.01986551,2076.6,2074.9,4.81945163]
[1772635007601,0.21502099,2076.5,2074.9,1.20487734]
[1772635007839,0.21502099,2076.5,2074.8,0.57700207]
[1772635007840,5.18015171,2076.1,2074.8,0.57700207]
[1772635008012,8.08540151,2075.8,2073.9,1.20545831]
[1772635008328,1.20400693,2076.4,2073.9,6.30772327]
[1772635008329,6.31862264,2076.4,2073.9,6.30772327]
[1772635008550,1.20400693,2076.4,2073.9,6.30772327]
[1772635008692,1.20400693,2076.4,2074.4,0.065536]
[1772635008900,1.20400693,2076.4,2074.5,0.14948499]
[1772635009200,1.20400693,2076.4,2074.3,5.11144742]
[1772635009201,1.20400693,2076.4,2074.6,0.065536]
[1772635009407,1.50994903,2077.0,2074.6,0.065536]
[1772635009408,4.81486831,2077.0,2074.8,5.17698342]
[1772635009631,6.48084796,2077.7,2075.3,0.14948499]
[1772635009946,4.81370944,2077.6,2075.5,0.065536]
[1772635010445,4.81370944,2077.6,2075.7,0.065536]
[1772635010602,1.20302199,2078.2,2076.1,0.065536]
[1772635010942,1.20261689,2078.8,2076.8,0.065536]
[1772635011242,4.8090001,2079.5,2077.1,5.26093241]
[1772635011530,1.20226988,2079.5,2077.4,0.065536]
[1772635011734,4.81084828,2079.6,2077.5,1.607]
[1772635011735,0.002,2079.6,2077.5,1.607]
[1772635011897,0.002,2079.6,2077.7,0.21502099]
[1772635012103,0.002,2079.6,2077.9,0.065536]
[1772635012407,0.002,2079.6,2077.4,0.065536]
[1772635012610,5.34507245,2079.6,2076.9,4.81463649]
[1772635012929,2.9052498,2079.3,2077.1,1.672536]
[1772635013128,2.9052498,2079.3,2077.1,0.065536]
[1772635013301,0.065536,2078.8,2076.9,4.81463649]
[1772635013700,1.20307988,2078.0,2076.1,4.81649166]
[1772635014132,2.9052498,2077.7,2075.5,4.81805992]
[1772635014322,1.20307988,2078.0,2076.1,0.065536]
[1772635014636,4.10832968,2078.0,2075.5,7.02251309]
[1772635014821,4.10832968,2078.0,2075.5,4.81805992]
[1772635015133,4.81120401,2078.5,2075.7,5.11144742]
[1772635015335,4.87524214,2079.2,2076.4,5.17698342]
[1772635015523,4.87524214,2079.2,2076.5,5.11144742]
[1772635015732,5.27753645,2079.1,2076.6,1.671536]
[1772635016042,0.065536,2078.8,2076.7,1.203833]
[1772635016541,0.065536,2078.8,2076.8,1.606]
[1772635016738,5.27753645,2078.7,2076.7,1.203833]
[1772635016912,0.065536,2078.4,2076.3,1.20400693]
[1772635017117,0.065536,2078.1,2076.3,1.20400693]
[1772635017305,5.34307245,2078.1,2075.9,2.81029693]
[1772635017634,5.27753645,2078.1,2076.0,1.670536]
[1772635017839,5.27753645,2078.1,2075.8,9.92863514]
[1772635017840,1.20307988,2078.0,2076.2,1.20412291]
[1772635018041,0.065536,2077.9,2076.2,1.20412291]
[1772635018332,2.9052498,2077.9,2076.2,1.20412291]
[1772635018546,5.34307245,2077.8,2075.7,1.605]
[1772635019254,5.34307245,2077.8,2075.8,1.605]
[1772635019452,5.27753645,2077.8,2075.9,0.065536]
[1772635019660,8.18278625,2077.8,2075.5,1.20452902]
[1772635019940,1.20325359,2077.7,2075.7,1.20441296]
[1772635020752,1.20325359,2077.7,2075.5,4.88318787]
[1772635020753,0.065536,2077.2,2075.5,4.81788398]
[1772635021042,0.665536,2077.5,2075.5,4.81788398]
[1772635021250,2.9052498,2077.4,2075.5,4.81788398]
[1772635021406,1.920536,2077.3,2075.5,4.81788398]
[1772635021607,1.855,2077.3,2075.5,4.81788398]
[1772635021808,5.27753645,2077.3,2075.5,6.42188398]
[1772635022032,5.34307245,2076.9,2074.8,4.81928838]
[1772635022216,5.27753645,2076.8,2074.8,6.42328838]
[1772635022410,1.20342736,2077.4,2074.9,5.17698342]
[1772635022411,6.48096381,2077.4,2074.9,5.17698342]
[1772635022911,6.48096381,2077.4,2075.2,5.32646841]
[1772635023112,6.48096381,2077.4,2074.8,8.1278937]
[1772635023113,5.34307245,2077.3,2074.8,6.42228838]
[1772635023413,5.34307245,2077.3,2074.9,0.065536]
[1772635023605,5.34307245,2077.3,2074.9,0.21502099]
[1772635023818,7.19607245,2077.3,2075.0,0.14948499]
[1772635024111,1.20354323,2077.2,2075.2,0.14948499]
[1772635024352,1.20313778,2077.9,2075.8,0.14948499]
[1772635024646,1.20313778,2077.9,2075.7,0.065536]
[1772635024865,1.20313778,2077.9,2075.2,3.30860532]
[1772635024866,2.9052498,2077.4,2075.2,2.20445317]
[1772635025011,2.9707858,2077.4,2075.2,0.065536]
[1772635025326,1.853,2077.3,2075.3,1.602]
[1772635025647,0.065536,2077.4,2075.3,1.602]
[1772635025868,5.27953645,2077.5,2075.6,5.11144742]
[1772635025869,0.002,2077.5,2075.6,5.11144742]
[1772635026014,0.002,2077.5,2076.1,5.26093241]
[1772635026356,0.002,2077.5,2076.1,5.11144742]
[1772635026521,0.002,2077.5,2076.2,1.602]
[1772635026722,0.002,2077.5,2075.9,1.20429693]
[1772635027114,0.002,2077.5,2076.0,1.602]
[1772635027314,0.002,2077.5,2075.9,1.20429693]
[1772635028013,0.002,2077.5,2075.7,1.601]
[1772635028014,1.20536943,2077.5,2075.7,1.601]
[1772635028910,1.20536943,2077.5,2075.8,5.17698342]
[1772635029144,1.20536943,2077.5,2075.9,1.6]
[1772635029356,1.20536943,2077.5,2076.0,1.6]
[1772635029648,1.20536943,2077.5,2075.7,1.6]
[1772635030057,0.002,2077.5,2075.9,5.11144742]
[1772635030259,0.002,2077.5,2076.0,0.14948499]
[1772635030415,0.002,2077.5,2076.1,1.599]
[1772635030615,0.002,2077.5,2075.9,5.11144742]
[1772635030816,0.002,2077.5,2075.8,2.80335494]
[1772635031038,0.002,2077.5,2075.9,0.14948499]
[1772635031239,0.002,2077.5,2075.8,7.91480236]
[1772635031519,0.6,2077.3,2075.9,1.598]
[1772635031713,0.002,2077.5,2076.2,5.32646841]
[1772635031925,1.2052559,2077.7,2076.4,1.20400693]
[1772635031926,0.002,2077.7,2076.4,1.20400693]
[1772635032126,0.002,2078.0,2076.4,1.20400693]
[1772635032127,0.002,2078.0,2076.7,5.26093241]
[1772635032329,1.20244336,2079.1,2077.1,0.21502099]
[1772635032541,12.99360104,2079.6,2077.8,0.065536]
[1772635032542,1.20221207,2079.5,2077.8,0.065536]
[1772635032720,1.20221207,2079.5,2077.9,1.597]
[1772635032915,1.20419169,2079.6,2078.0,0.14948499]
[1772635033253,0.002,2079.6,2078.3,5.32646841]
[1772635033410,0.002,2079.8,2078.3,5.32646841]
[1772635033611,0.002,2079.8,2078.8,0.21502099]
[1772635033814,0.002,2079.8,2078.7,7.31590059]
[1772635033815,0.002,2079.8,2079.0,0.21502099]
[1772635034117,0.002,2080.1,2079.0,0.21502099]
[1772635034118,0.002,2080.1,2079.2,0.14948499]
[1772635034313,0.002,2080.1,2078.5,2.20445317]
[1772635034511,1.20145782,2080.9,2078.7,0.14948499]
[1772635034739,1.20145782,2080.9,2078.9,0.14948499]
[1772635035147,1.20109842,2081.5,2079.4,5.11144742]
[1772635035364,1.20109842,2081.5,2078.9,4.35233674]
[1772635035365,8.18278625,2081.2,2079.0,1.595]
[1772635035535,5.27753645,2081.1,2078.9,5.11144742]
[1772635035859,5.27753645,2081.1,2078.7,0.21502099]
[1772635035860,5.27753645,2081.1,2079.1,1.595]
[1772635036066,1.2013455,2081.0,2079.2,1.20238553]
[1772635036264,1.2013455,2081.0,2079.4,0.14948499]
[1772635036434,1.2013455,2081.0,2079.5,1.594]
[1772635036634,1.20111463,2081.4,2079.6,0.21502099]